bitfinex/quotes_SOLUSD_20220211
["timestamp","ask_amount","ask_price","bid_price","bid_amount"]
[1644546113889,15.93,104.21,104.1,1.34977453]
[1644546114090,15.93,104.21,104.09,23.3208]
[1644546114091,11.13,104.21,104.09,23.3208]
[1644546114289,11.13,104.23,104.11,42.92037243]
[1644546114488,24.2699,104.24,104.11,57.12795688]
[1644546114690,35.3999,104.24,104.13,35.09300267]
[1644546114890,4.799,104.23,104.15,44.02893697]
[1644546115090,35.3999,104.24,104.15,44.02893697]
[1644546115691,14.4068,104.22,104.15,44.02893697]
[1644546118292,14.4068,104.22,104.11,6.52680992]
[1644546118488,14.4068,104.22,104.1,1.34977453]
[1644546118489,14.4133,104.18,104.1,4.799]
[1644546118689,14.4133,104.18,104.07,97.22017453]
[1644546118889,14.4133,104.18,104.08,14.4136]
[1644546119090,14.4133,104.18,104.07,49.18357453]
[1644546119293,15.931,104.2,104.09,41.58253701]
[1644546119490,25.5392,104.2,104.11,40.6659896]
[1644546119889,25.5392,104.2,104.11,40.9159896]
[1644546119890,14.4092,104.2,104.11,40.9159896]
[1644546120190,25.5392,104.2,104.11,40.6659896]
[1644546120393,25.5392,104.2,104.1,4.8]
[1644546120593,7.03122154,104.19,104.1,4.8]
[1644546120790,14.4156,104.17,104.1,4.8]
[1644546121392,11.13,104.18,104.11,40.8773343]
[1644546121593,23.5482,104.19,104.11,40.8773343]
[1644546121792,14.4122,104.18,104.11,41.1273343]
[1644546121995,23.5482,104.19,104.11,40.8773343]
[1644546122399,28.3482,104.19,104.11,40.8773343]
[1644546122800,28.3482,104.19,104.11,41.1273343]
[1644546123001,4.8,104.19,104.11,41.1273343]
[1644546123200,11.13,104.2,104.11,41.1273343]
[1644546123600,17.13,104.2,104.11,41.1273343]
[1644546123801,14.4109,104.19,104.11,41.1273343]
[1644546124201,11.13,104.2,104.11,41.1273343]
[1644546124402,11.13,104.22,104.11,41.1273343]
[1644546124603,1.32686334,104.24,104.13,42.9248089]
[1644546124803,12.45686334,104.25,104.15,34.39248528]
[1644546125203,12.45686334,104.25,104.15,34.64248528]
[1644546125805,14.4052,104.23,104.15,34.14248528]
[1644546126809,26.86046334,104.25,104.15,48.54648528]
[1644546127307,26.86046334,104.25,104.15,54.54648528]
[1644546127708,26.86046334,104.25,104.15,48.54648528]
[1644546127908,26.86046334,104.25,104.15,34.14248528]
[1644546128112,14.4051,104.23,104.15,34.14248528]
[1644546128511,14.4051,104.23,104.15,33.89248528]
[1644546129412,4.798,104.22,104.15,33.91648528]
[1644546129813,14.4084,104.21,104.15,33.91648528]
[1644546130013,14.4084,104.21,104.15,33.89248528]
[1644546130414,4.799,104.23,104.15,33.89248528]
[1644546130615,72.93416334,104.24,104.15,33.91648528]
[1644546130813,4.798,104.23,104.15,33.91648528]
[1644546131021,19.2044,104.23,104.15,33.91648528]
[1644546131218,20.53126334,104.23,104.15,33.91648528]
[1644546132015,15.73326334,104.23,104.15,33.91648528]
[1644546132717,14.4125,104.2,104.15,33.89248528]
[1644546132917,4.799,104.19,104.15,33.89248528]
[1644546133944,14.4129,104.18,104.15,33.89248528]
[1644546134144,6.06439994,104.17,104.15,33.89248528]
[1644546135847,6.06439994,104.17,104.12,0.024]
[1644546136047,20.47779994,104.17,104.11,22.7588]
[1644546136948,6.06439994,104.17,104.12,35.61263339]
[1644546137147,17.25786334,104.22,104.12,35.61263339]
[1644546137348,64.15556334,104.24,104.12,65.81353339]
[1644546137948,78.96240394,104.24,104.12,65.81353339]
[1644546138150,78.96240394,104.24,104.12,80.22183339]
[1644546138348,14.4076,104.22,104.12,74.22183339]
[1644546138548,19.2066,104.22,104.12,74.22183339]
[1644546140654,14.4076,104.22,104.12,74.22183339]
[1644546140854,14.4076,104.22,104.12,80.22183339]
[1644546141453,14.405,104.23,104.12,80.22183339]
[1644546141652,1.32686334,104.25,104.13,3.09874751]
[1644546141857,1.32686334,104.26,104.17,14.4011]
[1644546142056,1.32686334,104.26,104.18,0.024]
[1644546142454,1.32686334,104.26,104.18,38.02535273]
[1644546142855,95.58,104.25,104.18,0.00535273]
[1644546143059,1.32686334,104.22,104.1,1.34977453]
[1644546143358,1.32686334,104.22,104.09,23.0308]
[1644546143359,1.32686334,104.2,104.09,23.0308]
[1644546143555,11.13,104.19,104.09,23.0308]
[1644546143757,11.13,104.19,104.1,44.38549412]
[1644546144357,14.4161,104.18,104.1,44.38549412]
[1644546144559,1.32686334,104.17,104.1,44.38549412]
[1644546144759,6.12786334,104.16,104.1,44.38549412]
[1644546144959,1.32686334,104.16,104.1,44.38549412]
[1644546145760,14.4154,104.16,104.1,44.38549412]
[1644546147162,1.32686334,104.17,104.1,44.38549412]
[1644546147363,1.31927481,104.18,104.11,52.0]
[1644546147565,2.67214681,104.22,104.11,52.0]
[1644546147781,4.801,104.23,104.11,69.83]
[1644546147782,15.72568971,104.23,104.11,69.83]
[1644546147964,1.3202809,104.23,104.13,40.90001458]
[1644546148168,1.32032664,104.25,104.16,14.4032]
[1644546148566,1.32032664,104.24,104.16,14.4032]
[1644546148764,14.4053,104.23,104.15,24.3611]
[1644546148965,20.52362664,104.23,104.16,44.10791063]
[1644546149264,1.32032664,104.22,104.16,44.10791063]
[1644546149665,27.835,104.24,104.16,44.10791063]
[1644546149864,4.798,104.25,104.16,44.10791063]
[1644546150064,14.404,104.24,104.16,44.35791063]
[1644546150268,14.404,104.24,104.16,44.10791063]
[1644546150465,40.82238969,104.23,104.16,44.10791063]
[1644546150669,11.13,104.24,104.16,44.10791063]
[1644546150867,4.798,104.23,104.16,44.10791063]
[1644546151069,11.13,104.25,104.16,44.10791063]
[1644546151267,15.928,104.25,104.16,44.10791063]
[1644546151665,21.928,104.25,104.16,44.10791063]
[1644546151867,14.4064,104.23,104.16,44.10791063]
[1644546152268,34.074,104.25,104.16,44.10791063]
[1644546152568,2.23122154,104.23,104.16,44.10791063]
[1644546152969,14.4082,104.21,104.16,44.10791063]
[1644546156066,17.95982945,104.21,104.16,44.10791063]
[1644546156269,14.4137,104.19,104.16,44.10791063]
[1644546157970,14.4137,104.19,104.12,24.8897]
[1644546158169,14.4138,104.17,104.12,24.8897]
[1644546158371,14.4138,104.17,104.11,24.5689]
[1644546159171,14.4138,104.17,104.12,35.01326937]
[1644546166102,30.46950791,104.2,104.12,35.01326937]
[1644546166300,24.3491,104.2,104.12,35.03726937]
[1644546166699,24.3491,104.2,104.12,35.28726937]
[1644546166901,1.32040791,104.21,104.12,35.28726937]
[1644546167102,14.4093,104.2,104.12,49.69656937]
[1644546168507,1.32040791,104.21,104.14,14.4063]
[1644546168707,1.32040791,104.23,104.14,14.4303]
[1644546168907,1.32040791,104.23,104.14,14.6803]
[1644546169506,1.32040791,104.23,104.15,47.36059049]
[1644546169706,15.72670791,104.23,104.15,61.76609049]
[1644546169908,15.72670791,104.23,104.15,62.01609049]
[1644546170306,14.4063,104.23,104.15,62.01609049]
[1644546171609,1.32040791,104.24,104.15,62.01609049]
[1644546172111,15.72360791,104.25,104.15,68.01609049]
[1644546172307,1.32040791,104.25,104.16,4.798]
[1644546172510,1.32040791,104.25,104.18,14.4007]
[1644546172707,27.8646,104.27,104.18,14.4007]
[1644546172708,1.32040791,104.26,104.18,14.4007]
[1644546172907,1.32040791,104.26,104.18,14.6507]
[1644546173107,1.32040791,104.27,104.18,38.638]
[1644546173308,1.32040791,104.27,104.18,50.321]
[1644546173508,1.32040791,104.28,104.18,50.321]
[1644546173711,15.71850791,104.28,104.21,14.3975]
[1644546174011,4.796,104.27,104.22,44.66769919]
[1644546174607,6.11640791,104.27,104.22,44.66769919]
[1644546174809,6.11640791,104.28,104.22,44.66769919]
[1644546175011,14.3994,104.27,104.22,44.66769919]
[1644546175209,15.71980791,104.27,104.22,44.66769919]
[1644546175608,1.32040791,104.26,104.22,44.66769919]
[1644546175810,4.796,104.25,104.22,44.66769919]
[1644546176011,1.32040791,104.26,104.22,44.66769919]
[1644546176810,14.402,104.25,104.22,44.66769919]
[1644546177012,14.402,104.25,104.23,4.81007479]
[1644546177216,14.402,104.25,104.24,48.31873426]
[1644546179109,15.72100791,104.26,104.24,48.31873426]
[1644546181214,14.4006,104.26,104.24,48.31873426]
[1644546182429,19.1966,104.26,104.24,48.31873426]
[1644546183623,14.4006,104.26,104.24,48.31873426]
[1644546184522,1.32040791,104.27,104.25,4.80973371]
[1644546184721,2.64081583,104.31,104.25,1.77753374]
[1644546184923,4.795,104.31,104.25,1.77753374]
[1644546185524,4.795,104.31,104.26,39.80141722]
[1644546185745,6.0,104.31,104.26,39.80141722]
[1644546185947,20.3948,104.31,104.26,39.80141722]
[1644546186348,62.12868288,104.31,104.26,39.80141722]
[1644546186548,7.02422154,104.3,104.21,24.6102]
[1644546186847,11.13,104.29,104.21,24.6102]
[1644546187048,4.796,104.28,104.21,24.6102]
[1644546187447,40.80501222,104.28,104.22,42.41531412]
[1644546187850,55.20541222,104.28,104.22,42.41531412]
[1644546188148,19.1964,104.28,104.22,42.41531412]
[1644546188750,25.1964,104.28,104.22,42.41531412]
[1644546191552,57.73729812,104.28,104.22,42.41531412]
[1644546191755,57.73729812,104.28,104.18,24.1479]
[1644546191957,14.4035,104.25,104.15,4.796]
[1644546192157,24.6565,104.25,104.15,4.796]
[1644546192354,24.6565,104.25,104.12,11.13]
[1644546192355,4.798,104.24,104.13,14.4319]
[1644546192555,11.13,104.24,104.14,0.024]
[1644546192757,11.13,104.24,104.14,47.46520894]
[1644546193358,14.4088,104.22,104.14,62.12210894]
[1644546193558,14.4088,104.22,104.14,47.71520894]
[1644546193961,14.4088,104.22,104.14,47.46520894]
[1644546194360,14.4088,104.22,104.14,47.44120894]
[1644546195160,38.5334686,104.21,104.14,47.44120894]
[1644546195360,38.5334686,104.21,104.14,47.69120894]
[1644546195562,14.4094,104.2,104.14,47.69120894]
[1644546199362,15.928,104.23,104.14,47.69120894]
[1644546199562,4.799,104.25,104.14,52.49020894]
[1644546199762,10.799,104.25,104.14,58.49020894]
[1644546199963,14.4031,104.24,104.14,58.49020894]
[1644546200165,14.4031,104.24,104.14,60.23918282]
[1644546200867,14.4031,104.24,104.14,74.64628282]
[1644546201664,14.4031,104.24,104.14,170.22628282]
[1644546201867,4.798,104.23,104.14,68.39528282]
[1644546202063,11.13,104.23,104.14,47.44120894]
[1644546202265,4.799,104.22,104.14,47.44120894]
[1644546202465,16.00203737,104.23,104.14,47.44120894]
[1644546202764,53.85656495,104.23,104.14,47.44120894]
[1644546203665,59.85656495,104.23,104.14,47.44120894]
[1644546203864,71.62024912,104.23,104.14,47.44120894]
[1644546204065,74.26106495,104.23,104.14,47.44120894]
[1644546205168,69.38902758,104.23,104.14,47.44120894]
[1644546205771,4.799,104.22,104.14,47.44120894]
[1644546205966,14.4097,104.2,104.14,47.44120894]
[1644546206166,14.4097,104.2,104.14,47.69120894]
[1644546210574,20.4097,104.2,104.14,47.69120894]
[1644546211275,14.4097,104.2,104.14,47.69120894]
[1644546211876,14.4074,104.21,104.14,47.69120894]
[1644546212073,49.07678597,104.21,104.14,47.44120894]
[1644546212676,66.20678597,104.21,104.14,47.44120894]
[1644546213277,4.799,104.2,104.14,47.44120894]
[1644546213479,14.4123,104.19,104.14,47.44120894]
[1644546217984,19.2089,104.2,104.14,47.69120894]
[1644546218186,14.4089,104.2,104.14,47.69120894]
[1644546218586,28.8472,104.2,104.14,47.69120894]
[1644546218785,34.8472,104.2,104.14,47.69120894]
[1644546219817,28.8472,104.2,104.14,47.69120894]
[1644546220017,28.8472,104.2,104.14,47.44120894]
[1644546220219,28.8472,104.2,104.14,47.69120894]
[1644546220418,28.8472,104.2,104.14,47.44120894]
[1644546220616,28.8472,104.2,104.14,47.69120894]
[1644546221017,28.8472,104.2,104.14,47.44120894]
[1644546221219,28.8472,104.2,104.14,47.69120894]
[1644546221420,34.8472,104.2,104.14,47.69120894]
[1644546222324,34.8472,104.2,104.14,47.44120894]
[1644546222521,34.8472,104.2,104.14,47.69120894]
[1644546223121,28.8472,104.2,104.14,47.69120894]
[1644546223422,4.799,104.23,104.14,47.69120894]
[1644546223623,7.43981583,104.25,104.17,14.4017]
[1644546223921,2.64081583,104.26,104.17,14.6517]
[1644546224121,19.1988,104.25,104.18,23.8455]
[1644546224424,19.1988,104.25,104.19,12.64535539]
[1644546224623,25.1988,104.25,104.19,12.64535539]
[1644546224925,35.44700499,104.24,104.19,12.64535539]
[1644546225121,14.4051,104.23,104.19,12.64535539]
[1644546225524,14.4051,104.23,104.16,23.9319]
[1644546225722,19.2031,104.23,104.16,24.1819]
[1644546226121,19.2031,104.23,104.16,23.9319]
[1644546226522,19.2031,104.23,104.17,36.6708666]
[1644546227323,14.4071,104.21,104.17,36.6708666]
[1644546227526,14.4071,104.21,104.15,24.6226]
[1644546227822,14.4071,104.21,104.15,0.25]
[1644546227823,20.4071,104.21,104.15,0.25]
[1644546228226,20.4071,104.21,104.13,0.024]
[1644546228426,48.45710384,104.2,104.13,0.024]
[1644546228626,14.4109,104.19,104.13,0.024]
[1644546231828,65.42211583,104.23,104.13,0.024]
[1644546232028,48.0276,104.23,104.13,24.5751]
[1644546232228,54.0276,104.23,104.13,24.8251]
[1644546232428,54.0276,104.23,104.14,0.024]
[1644546232631,48.0276,104.23,104.14,0.024]
[1644546232830,14.4073,104.21,104.14,23.44809655]
[1644546233128,30.66911583,104.24,104.14,25.19707043]
[1644546233327,7.43981583,104.25,104.15,4.799]
[1644546233529,7.43981583,104.25,104.16,22.7667]
[1644546233730,14.4026,104.24,104.16,22.7667]
[1644546233928,14.4026,104.24,104.17,36.66246778]
[1644546234330,52.03166057,104.24,104.17,36.91246778]
[1644546234528,14.4026,104.24,104.17,36.91246778]
[1644546234932,20.4026,104.24,104.17,36.91246778]
[1644546235133,14.4026,104.24,104.17,36.91246778]
[1644546236032,19.2006,104.25,104.17,36.91246778]
[1644546236232,14.4016,104.25,104.17,38.66144166]
[1644546236834,6.0,104.25,104.17,53.06184166]
[1644546237135,6.0,104.25,104.17,148.64184166]
[1644546237334,6.0,104.26,104.17,154.64184166]
[1644546237535,7.43781583,104.29,104.18,11.13]
[1644546237737,6.0,104.28,104.2,23.42409655]
[1644546238134,14.3975,104.28,104.21,1.74897388]
[1644546238339,8.64081583,104.29,104.21,1.99897388]
[1644546239038,6.0,104.29,104.22,36.66246778]
[1644546239239,8.68479757,104.3,104.22,36.91246778]
[1644546239636,0.04398174,104.3,104.22,36.91246778]
[1644546239837,14.3959,104.29,104.22,36.91246778]
[1644546240039,176.80409757,104.31,104.22,38.66144166]
[1644546240040,0.04398174,104.3,104.22,38.66144166]
[1644546240242,2.64081583,104.31,104.23,4.795]
[1644546240243,0.04398174,104.31,104.23,4.795]
[1644546240438,0.04398174,104.3,104.24,11.13]
[1644546240642,0.04398174,104.32,104.24,12.87897388]
[1644546240837,0.04398174,104.33,104.25,25.17307043]
[1644546241039,20.17140434,104.35,104.25,41.09607043]
[1644546241241,0.04398174,104.33,104.26,1.74897388]
[1644546241440,0.04398174,104.34,104.27,35.04920904]
[1644546241640,4.793,104.34,104.27,35.04920904]
[1644546241840,44.73869446,104.33,104.27,35.04920904]
[1644546242050,44.73869446,104.33,104.25,4.793]
[1644546242244,4.793,104.32,104.25,4.793]
[1644546242444,53.37951029,104.33,104.25,4.793]
[1644546242646,4.793,104.32,104.25,4.793]
[1644546243043,38.29863707,104.31,104.25,51.62327112]
[1644546243443,52.69323707,104.31,104.25,51.62327112]
[1644546243644,14.3946,104.31,104.25,51.62327112]
[1644546243847,4.793,104.32,104.25,51.62327112]
[1644546243848,4.793,104.32,104.25,51.87327112]
[1644546244044,4.83698174,104.33,104.26,1.74897388]
[1644546244244,0.04398174,104.35,104.26,7.99897388]
[1644546244645,0.04398174,104.35,104.27,13.25629321]
[1644546244945,39.37533345,104.36,104.27,19.50629321]
[1644546245151,4.83698174,104.36,104.27,19.50629321]
[1644546245348,19.22478174,104.36,104.27,19.50629321]
[1644546245546,19.22478174,104.36,104.27,13.50629321]
[1644546245760,19.22478174,104.36,104.27,19.50629321]
[1644546245961,25.22478174,104.36,104.27,19.50629321]
[1644546246462,25.22478174,104.36,104.27,21.25526709]
[1644546247263,20.3878,104.36,104.27,21.25526709]
[1644546247464,14.43018174,104.37,104.27,26.04826709]
[1644546247664,0.04398174,104.36,104.27,26.04826709]
[1644546247966,0.04398174,104.36,104.28,11.13]
[1644546248164,0.04398174,104.37,104.29,4.792]
[1644546248365,0.04398174,104.37,104.3,38.32932824]
[1644546248565,0.04398174,104.39,104.31,11.13]
[1644546248764,27.96708174,104.4,104.32,21.75723609]
[1644546248965,0.04398174,104.39,104.32,21.75723609]
[1644546249165,4.83398174,104.4,104.32,21.75723609]
[1644546249364,4.791,104.38,104.32,21.75723609]
[1644546249566,4.83498174,104.39,104.32,21.75723609]
[1644546249766,48.43227138,104.38,104.32,21.75723609]
[1644546251368,48.43227138,104.38,104.29,11.38]
[1644546251566,48.43227138,104.38,104.27,87.5382]
[1644546251567,48.47625312,104.38,104.27,87.5382]
[1644546251765,4.792,104.37,104.27,10.79]
[1644546251966,0.04398174,104.36,104.27,4.79]
[1644546252166,19.1827,104.35,104.27,4.79]
[1644546252468,40.22133875,104.34,104.27,52.04030802]
[1644546252666,4.793,104.33,104.27,52.04030802]
[1644546252866,40.22133875,104.34,104.27,52.04030802]
[1644546253264,46.22133875,104.34,104.27,52.04030802]
[1644546253466,4.793,104.33,104.27,52.04030802]
[1644546254766,20.3914,104.34,104.27,47.25030802]
[1644546255165,40.26542053,104.33,104.27,47.25030802]
[1644546255568,40.26542053,104.33,104.24,38.9404]
[1644546255866,59.49460227,104.33,104.24,34.3974]
[1644546256066,59.49460227,104.33,104.24,34.1474]
[1644546256265,59.49460227,104.33,104.24,11.216]
[1644546256466,59.49460227,104.33,104.23,4.793]
[1644546256667,59.49460227,104.33,104.23,56.63085803]
[1644546257067,83.19790227,104.33,104.23,56.63085803]
[1644546257670,78.40490227,104.33,104.23,56.88085803]
[1644546258271,78.40490227,104.33,104.23,11.043]
[1644546258669,4.793,104.32,104.23,5.043]
[1644546258868,14.3961,104.3,104.23,4.793]
[1644546259068,4.795,104.29,104.2,1.75428898]
[1644546259269,40.44738728,104.28,104.16,43.67164769]
[1644546259469,45.57728565,104.26,104.16,43.67164769]
[1644546259671,44.22216429,104.24,104.16,43.67164769]
[1644546260874,58.62736429,104.24,104.16,43.67164769]
[1644546261073,14.4052,104.24,104.16,43.67164769]
[1644546261472,14.4052,104.24,104.16,43.92164769]
[1644546261873,14.403,104.25,104.16,43.92164769]
[1644546262073,24.16288174,104.27,104.16,43.92164769]
[1644546262274,24.16288174,104.27,104.16,51.68126034]
[1644546262473,24.16288174,104.27,104.16,158.39126034]
[1644546262876,0.04398174,104.27,104.16,172.79206034]
[1644546263075,0.04398174,104.27,104.16,173.24206034]
[1644546263275,0.04398174,104.28,104.17,4.797]
[1644546263477,0.04398174,104.27,104.18,11.13]
[1644546263677,0.04398174,104.3,104.18,12.88961265]
[1644546263879,0.04398174,104.3,104.19,18.17452929]
[1644546263880,4.796,104.29,104.19,18.17452929]
[1644546264176,0.04398174,104.28,104.19,29.30452929]
[1644546264375,0.04398174,104.28,104.19,131.13452929]
[1644546264776,0.04398174,104.28,104.2,1.75961265]
[1644546264976,4.83998174,104.29,104.21,36.48245164]
[1644546265175,0.04398174,104.28,104.21,36.48245164]
[1644546265377,0.04398174,104.29,104.21,36.73245164]
[1644546266378,0.04398174,104.29,104.21,38.49206429]
[1644546266781,0.04398174,104.29,104.21,55.62206429]
[1644546266979,0.04398174,104.29,104.21,151.20206429]
[1644546267882,0.04398174,104.31,104.22,0.45]
[1644546268081,0.04398174,104.33,104.23,11.13]
[1644546268281,0.04398174,104.33,104.23,19.13961265]
[1644546268482,0.04398174,104.33,104.23,17.38]
[1644546268685,0.04398174,104.34,104.24,25.36372534]
[1644546268882,0.04398174,104.32,104.26,36.48245164]
[1644546269083,0.04398174,104.33,104.26,36.48245164]
[1644546269283,0.04398174,104.34,104.26,38.49206429]
[1644546269486,63.11268174,104.35,104.26,38.49206429]
[1644546269888,63.0687,104.35,104.26,38.49206429]
[1644546270085,53.47138612,104.34,104.26,38.49206429]
[1644546270283,53.51536786,104.34,104.26,38.24206429]
[1644546270486,67.90576786,104.34,104.26,36.48245164]
[1644546270887,70.54658369,104.34,104.26,36.48245164]
[1644546271485,65.75358369,104.34,104.26,36.48245164]
[1644546271685,63.11276786,104.34,104.26,36.48245164]
[1644546271886,63.11276786,104.34,104.26,36.73245164]
[1644546272085,63.11276786,104.34,104.26,36.48245164]
[1644546272686,19.1853,104.33,104.26,36.48245164]
[1644546273087,40.45744508,104.32,104.26,36.48245164]
[1644546273386,25.22928174,104.33,104.26,36.48245164]
[1644546273585,20.3923,104.33,104.26,36.48245164]
[1644546274390,20.3923,104.33,104.26,36.73245164]
[1644546274588,4.83698174,104.34,104.26,36.73245164]
[1644546274988,4.83698174,104.34,104.26,36.48245164]
[1644546274989,37.7733597,104.33,104.26,36.48245164]
[1644546275388,43.7733597,104.33,104.26,36.48245164]
[1644546275988,14.3933,104.32,104.23,1.75961265]
[1644546276188,30.3163,104.32,104.2,4.793]
[1644546276389,2.27520328,104.31,104.19,23.3022]
[1644546276590,4.83998174,104.3,104.19,23.5522]
[1644546276788,58.53378174,104.3,104.19,25.31181265]
[1644546276988,36.25372517,104.29,104.2,42.42410978]
[1644546277188,58.53378174,104.3,104.2,42.42410978]
[1644546277389,53.73778174,104.3,104.2,42.67410978]
[1644546277789,14.3971,104.29,104.2,42.67410978]
[1644546277988,14.3971,104.29,104.2,47.47010978]
[1644546278188,51.53759385,104.29,104.2,47.47010978]
[1644546278890,51.53759385,104.29,104.2,47.22010978]
[1644546279092,56.33359385,104.29,104.2,42.42410978]
[1644546279290,56.33359385,104.29,104.2,42.67410978]
[1644546279991,56.33359385,104.29,104.2,42.42410978]
[1644546281393,56.33359385,104.29,104.2,42.67410978]
[1644546281595,62.33359385,104.29,104.2,42.67410978]
[1644546282091,56.33359385,104.29,104.2,42.67410978]
[1644546283094,19.1931,104.29,104.2,44.18372243]
[1644546283296,47.73778174,104.3,104.2,50.43372243]
[1644546283494,47.73778174,104.3,104.21,11.13]
[1644546283693,0.04398174,104.3,104.21,11.13]
[1644546283899,0.04398174,104.3,104.22,1.75961265]
[1644546284096,14.3944,104.31,104.23,17.66245455]
[1644546284294,0.04398174,104.3,104.23,17.91245455]
[1644546284494,0.04398174,104.31,104.24,1.75961265]
[1644546284696,14.43668174,104.32,104.24,1.75961265]
[1644546284896,14.43668174,104.32,104.24,2.00961265]
[1644546285295,0.04398174,104.32,104.24,2.00961265]
[1644546285494,4.83998174,104.33,104.25,42.42410978]
[1644546285695,0.04398174,104.33,104.25,42.42410978]
[1644546285896,44.50039623,104.34,104.25,42.67410978]
[1644546286106,0.04398174,104.33,104.25,42.67410978]
[1644546286296,14.391,104.33,104.25,42.42410978]
[1644546286495,42.25805223,104.32,104.25,42.42410978]
[1644546286698,4.793,104.31,104.25,42.42410978]
[1644546287498,42.25805223,104.32,104.25,42.42410978]
[1644546287698,47.05105223,104.32,104.25,42.42410978]
[1644546287998,4.793,104.32,104.25,42.42410978]
[1644546288201,4.793,104.32,104.25,42.67410978]
[1644546288599,19.1855,104.32,104.25,42.67410978]
[1644546288900,3.96122374,104.36,104.25,44.43372243]
[1644546289099,0.04408567,104.33,104.26,111.503]
[1644546289302,0.04408567,104.35,104.26,117.753]
[1644546289500,0.04408567,104.36,104.27,1.75961265]
[1644546289699,0.04408567,104.37,104.28,15.923]
[1644546289900,0.04408567,104.37,104.29,95.58]
[1644546290102,0.04408567,104.37,104.3,11.13]
[1644546290301,0.04408567,104.39,104.3,28.11726963]
[1644546290504,0.04408567,104.39,104.3,34.11726963]
[1644546291006,0.04408567,104.39,104.31,1.75961265]
[1644546291203,0.04408567,104.4,104.31,6.55061265]
[1644546291403,0.04408567,104.39,104.32,40.34549872]
[1644546291604,0.04408567,104.4,104.32,42.10511137]
[1644546291805,0.04408567,104.4,104.32,42.35511137]
[1644546292006,0.04408567,104.4,104.33,12.88961265]
[1644546292206,7.34304214,104.42,104.33,27.26921265]
[1644546292407,0.04408567,104.41,104.34,1.75961265]
[1644546292604,0.04408567,104.42,104.34,1.75961265]
[1644546292805,88.3837413,104.43,104.35,17.05626804]
[1644546293006,4.83308567,104.42,104.35,17.05626804]
[1644546293205,4.789,104.42,104.35,17.30626804]
[1644546293405,36.18847741,104.41,104.35,17.30626804]
[1644546293805,36.18847741,104.41,104.35,17.05626804]
[1644546294205,36.18847741,104.41,104.33,34.6068]
[1644546294407,4.79,104.4,104.32,14.3807]
[1644546294624,19.1718,104.4,104.3,36.1095]
[1644546294824,0.04408567,104.39,104.28,11.13]
[1644546295023,4.792,104.38,104.29,0.25]
[1644546295224,4.792,104.38,104.29,37.67391809]
[1644546295424,4.83608567,104.38,104.29,37.67391809]
[1644546295825,4.83608567,104.38,104.29,35.91430544]
[1644546296225,0.04408567,104.38,104.29,35.66430544]
[1644546296825,14.42868567,104.38,104.29,50.04890544]
[1644546297525,14.42868567,104.38,104.29,51.80851809]
[1644546298026,14.42868567,104.38,104.29,57.80851809]
[1644546298226,14.42868567,104.38,104.29,52.05851809]
[1644546298625,14.42868567,104.38,104.29,58.05851809]
[1644546298827,0.04408567,104.39,104.3,11.13]
[1644546299028,0.04408567,104.4,104.31,14.3812]
[1644546299427,0.04408567,104.4,104.31,14.6312]
[1644546299630,0.04408567,104.4,104.32,21.73746132]
[1644546299831,0.04408567,104.4,104.32,39.11746132]
[1644546300029,0.04408567,104.4,104.34,14.3776]
[1644546300227,0.04408567,104.42,104.35,34.86151181]
[1644546300428,0.04408567,104.41,104.35,34.86151181]
[1644546300629,0.04408567,104.42,104.35,35.11151181]
[1644546300830,38.61128567,104.43,104.35,35.11151181]
[1644546301229,85.23508491,104.43,104.35,41.11151181]
[1644546301436,85.23508491,104.43,104.35,35.11151181]
[1644546301728,85.23508491,104.43,104.35,41.11151181]
[1644546301930,85.23508491,104.43,104.35,35.11151181]
[1644546302137,85.23508491,104.43,104.35,36.87112446]
[1644546302335,85.23508491,104.43,104.35,42.87112446]
[1644546302637,85.23508491,104.43,104.35,41.11151181]
[1644546302834,85.23508491,104.43,104.35,35.11151181]
[1644546302835,90.02408491,104.43,104.35,35.11151181]
[1644546303336,89.97999924,104.43,104.35,35.11151181]
[1644546303538,90.02439643,104.43,104.35,35.11151181]
[1644546303738,85.23539643,104.43,104.35,35.11151181]
[1644546303937,14.42199719,104.43,104.35,35.11151181]
[1644546304136,0.04439719,104.43,104.36,1.75961265]
[1644546304338,0.04439719,104.43,104.36,23.92861265]
[1644546304641,0.04439719,104.46,104.37,1.75961265]
[1644546304841,0.04439719,104.46,104.38,15.918]
[1644546305040,1.31439086,104.46,104.39,22.54025495]
[1644546305240,0.04439719,104.46,104.4,15.918]